[Event "*** Titled Tuesday Blitz"]
[Site "Chess.com"]
[Date "2018.06.05"]
[Round "4"]
[White "Next_Touch"]
[Black "GMMatamoros"]
[Result "1-0"]
[WhiteElo "2703"]
[BlackElo "2514"]
[TimeControl "180+2"]
[EndTime "13:57:50 PDT"]
[Termination "Next_Touch won by resignation"]

1. d4 {[%clk 0:03:01.2]} 1... Nf6 {[%clk 0:03:00.3]} 2. c4 {[%clk 0:03:02.6]}
2... g6 {[%clk 0:03:01.6]} 3. Nc3 {[%clk 0:03:02.9]} 3... Bg7 {[%clk 0:03:03]}
4. e4 {[%clk 0:03:04.4]} 4... O-O {[%clk 0:03:04.1]} 5. f3 {[%clk 0:03:06.3]}
5... c5 {[%clk 0:03:04.7]} 6. Nge2 {[%clk 0:03:05.3]} 6... d6 {[%clk 0:03:04.1]}
7. Be3 {[%clk 0:03:05.8]} 7... Qa5 {[%clk 0:03:05.2]} 8. Nc1 {[%clk 0:03:05.3]}
8... cxd4 {[%clk 0:03:06.1]} 9. Nb3 {[%clk 0:03:06.3]} 9... Qh5 {[%clk
0:03:06.9]} 10. Nxd4 {[%clk 0:03:06.2]} 10... Nc6 {[%clk 0:03:05]} 11. Be2
{[%clk 0:02:44.2]} 11... Qh4+ {[%clk 0:03:03.8]} 12. g3 {[%clk 0:02:42.5]} 12...
Qh3 {[%clk 0:02:55.7]} 13. Bf1 {[%clk 0:02:43.7]} 13... Qh5 {[%clk 0:02:52.3]}
14. Bg2 {[%clk 0:02:40.2]} 14... Nxd4 {[%clk 0:02:30.2]} 15. Bxd4 {[%clk
0:02:40.5]} 15... Be6 {[%clk 0:02:20.6]} 16. b3 {[%clk 0:02:29.1]} 16... Nd7
{[%clk 0:02:13.3]} 17. Bxg7 {[%clk 0:02:26.8]} 17... Kxg7 {[%clk 0:02:12.7]} 18.
Qd4+ {[%clk 0:02:22.3]} 18... Qe5 {[%clk 0:01:51.5]} 19. Rd1 {[%clk 0:02:21.9]}
19... a5 {[%clk 0:01:43.5]} 20. f4 {[%clk 0:02:04.2]} 20... Qxd4 {[%clk
0:01:44]} 21. Rxd4 {[%clk 0:02:06.1]} 21... Nc5 {[%clk 0:01:41.1]} 22. Kf2
{[%clk 0:02:00.8]} 22... Rfc8 {[%clk 0:01:33.3]} 23. Rb1 {[%clk 0:00:43.5]}
23... Rab8 {[%clk 0:01:09.7]} 24. a4 {[%clk 0:00:33.7]} 24... f5 {[%clk
0:00:28.8]} 25. Rb2 {[%clk 0:00:23.7]} 25... Kf7 {[%clk 0:00:21.2]} 26. Bf3
{[%clk 0:00:22.6]} 26... Bd7 {[%clk 0:00:20.8]} 27. exf5 {[%clk 0:00:17.6]}
27... gxf5 {[%clk 0:00:21.6]} 28. Nd5 {[%clk 0:00:18.9]} 28... Bc6 {[%clk
0:00:22.2]} 29. Bh5+ {[%clk 0:00:12]} 29... Kg7 {[%clk 0:00:23.1]} 30. Nxe7
{[%clk 0:00:11.1]} 30... Re8 {[%clk 0:00:21.7]} 31. Bxe8 {[%clk 0:00:11]} 31...
Rxe8 {[%clk 0:00:23.3]} 32. Nxf5+ {[%clk 0:00:12.1]} 32... Kf6 {[%clk
0:00:22.9]} 33. Nxd6 {[%clk 0:00:13.1]} 33... Re6 {[%clk 0:00:22.8]} 34. Re2
{[%clk 0:00:11.2]} 34... Nxb3 {[%clk 0:00:22.8]} 35. Rxe6+ {[%clk 0:00:11.4]}
35... Kxe6 {[%clk 0:00:24.7]} 36. Rd1 {[%clk 0:00:12]} 36... Nc5 {[%clk
0:00:25.6]} 37. Nb5 {[%clk 0:00:10.8]} 37... Nxa4 {[%clk 0:00:25.5]} 38. Nd4+
{[%clk 0:00:12.3]} 38... Kf6 {[%clk 0:00:27.1]} 39. Nxc6 {[%clk 0:00:14.2]}
39... bxc6 {[%clk 0:00:28.6]} 40. Ra1 {[%clk 0:00:15.5]} 40... Nb6 {[%clk
0:00:29.2]} 41. Rxa5 {[%clk 0:00:16.2]} 41... Nxc4 {[%clk 0:00:31.1]} 42. Rc5
{[%clk 0:00:17.6]} 1-0

[Event "*** Titled Tuesday Blitz"]
[Site "Chess.com"]
[Date "2018.06.05"]
[Round "4"]
[White "Paralinch"]
[Black "GMSrinath"]
[Result "1-0"]
[WhiteElo "2837"]
[BlackElo "2678"]
[TimeControl "180+2"]
[EndTime "13:57:54 PDT"]
[Termination "Paralinch won by resignation"]

1. e4 {[%clk 0:03:01.9]} 1... e5 {[%clk 0:02:56]} 2. Nf3 {[%clk 0:03:02.6]} 2...
Nc6 {[%clk 0:02:57.4]} 3. Nc3 {[%clk 0:03:02.5]} 3... Nf6 {[%clk 0:02:57.3]} 4.
a3 {[%clk 0:03:03.9]} 4... d5 {[%clk 0:02:12.4]} 5. Bb5 {[%clk 0:03:03.2]} 5...
Nxe4 {[%clk 0:02:00.2]} 6. Qe2 {[%clk 0:03:03.8]} 6... Qd6 {[%clk 0:01:51.3]} 7.
Nxe4 {[%clk 0:02:59.9]} 7... dxe4 {[%clk 0:01:53.2]} 8. Qxe4 {[%clk 0:03:01.5]}
8... Bd7 {[%clk 0:01:54.3]} 9. d3 {[%clk 0:02:51.8]} 9... O-O-O {[%clk
0:01:48.8]} 10. O-O {[%clk 0:02:49.1]} 10... f6 {[%clk 0:01:48.5]} 11. b4 {[%clk
0:02:41.7]} 11... Kb8 {[%clk 0:01:48.8]} 12. Bb2 {[%clk 0:02:40.1]} 12... a6
{[%clk 0:00:57.6]} 13. Ba4 {[%clk 0:02:31.5]} 13... Nd4 {[%clk 0:00:58.7]} 14.
Bxd7 {[%clk 0:02:24.9]} 14... Nxf3+ {[%clk 0:01:00.2]} 15. Qxf3 {[%clk
0:02:25.9]} 15... Qxd7 {[%clk 0:01:02.1]} 16. d4 {[%clk 0:02:10.3]} 16... exd4
{[%clk 0:01:02.6]} 17. Bxd4 {[%clk 0:02:11.7]} 17... Bxb4 {[%clk 0:00:51.9]} 18.
Rfd1 {[%clk 0:01:33.5]} 18... Bd6 {[%clk 0:00:47]} 19. Rab1 {[%clk 0:01:31.3]}
19... Qc8 {[%clk 0:00:42.9]} 20. Rb3 {[%clk 0:01:26.2]} 20... c5 {[%clk
0:00:39.6]} 21. Rdb1 {[%clk 0:01:21.9]} 21... Rd7 {[%clk 0:00:39.7]} 22. Be3
{[%clk 0:01:23.2]} 22... Re8 {[%clk 0:00:33.2]} 23. g3 {[%clk 0:01:16.5]} 23...
Ree7 {[%clk 0:00:33.1]} 24. Rb6 {[%clk 0:01:15.2]} 24... c4 {[%clk 0:00:23.6]}
25. Rxa6 {[%clk 0:01:07.2]} 25... Kc7 {[%clk 0:00:15.3]} 26. Bb6+ {[%clk
0:00:53.1]} 26... Kb8 {[%clk 0:00:16.8]} 27. Ba7+ {[%clk 0:00:52.9]} 27... Kc7
{[%clk 0:00:18.3]} 28. Bb6+ {[%clk 0:00:50.4]} 28... Kb8 {[%clk 0:00:19.3]} 29.
Be3 {[%clk 0:00:51.5]} 29... Kc7 {[%clk 0:00:19.9]} 30. Rab6 {[%clk 0:00:50.7]}
30... Kd8 {[%clk 0:00:21.1]} 31. a4 {[%clk 0:00:50.5]} 31... Bb8 {[%clk
0:00:13.7]} 32. R6b5 {[%clk 0:00:48]} 32... Ke8 {[%clk 0:00:13.8]} 33. a5 {[%clk
0:00:43.1]} 33... Be5 {[%clk 0:00:13.8]} 34. Bc5 {[%clk 0:00:36.1]} 34... Rf7
{[%clk 0:00:13.4]} 35. Qe4 {[%clk 0:00:32.8]} 35... Rc7 {[%clk 0:00:12.2]} 36.
Bd6 {[%clk 0:00:29]} 36... Rc6 {[%clk 0:00:07.2]} 37. Bxe5 {[%clk 0:00:29.2]}
37... fxe5 {[%clk 0:00:09.1]} 38. Rxe5+ {[%clk 0:00:28.9]} 38... Kf8 {[%clk
0:00:10.7]} 39. Re1 {[%clk 0:00:30.3]} 1-0

[Event "*** Titled Tuesday Blitz"]
[Site "Chess.com"]
[Date "2018.06.05"]
[Round "4"]
[White "Fighterman91"]
[Black "Duhless"]
[Result "1-0"]
[WhiteElo "2577"]
[BlackElo "2795"]
[TimeControl "180+2"]
[EndTime "13:58:07 PDT"]
[Termination "Fighterman91 won by checkmate"]

1. e4 {[%clk 0:03:01]} 1... c5 {[%clk 0:02:58.5]} 2. Nf3 {[%clk 0:03:01.7]} 2...
Nc6 {[%clk 0:02:59.3]} 3. Bb5 {[%clk 0:03:02.1]} 3... g6 {[%clk 0:03:00]} 4.
Bxc6 {[%clk 0:03:03.5]} 4... bxc6 {[%clk 0:03:01.9]} 5. O-O {[%clk 0:03:04.1]}
5... Bg7 {[%clk 0:03:03.2]} 6. Re1 {[%clk 0:03:05.2]} 6... Nh6 {[%clk
0:03:04.2]} 7. c3 {[%clk 0:03:06.5]} 7... O-O {[%clk 0:03:05.5]} 8. d4 {[%clk
0:03:07.4]} 8... cxd4 {[%clk 0:03:07.4]} 9. cxd4 {[%clk 0:03:08.6]} 9... d5
{[%clk 0:03:09]} 10. e5 {[%clk 0:02:53.2]} 10... f6 {[%clk 0:03:08.3]} 11. h3
{[%clk 0:02:38.8]} 11... fxe5 {[%clk 0:02:56]} 12. Bxh6 {[%clk 0:02:38.8]} 12...
Bxh6 {[%clk 0:02:55.3]} 13. Nxe5 {[%clk 0:02:38.3]} 13... Qb6 {[%clk 0:02:54.7]}
14. b3 {[%clk 0:02:36]} 14... Rf4 {[%clk 0:02:49.2]} 15. Nf3 {[%clk 0:02:33.5]}
15... Qc7 {[%clk 0:02:34.4]} 16. Nc3 {[%clk 0:02:32.3]} 16... Bd7 {[%clk
0:02:27.6]} 17. Rxe7 {[%clk 0:02:22.3]} 17... Qd6 {[%clk 0:02:27.6]} 18. Qe2
{[%clk 0:02:04.3]} 18... Bxh3 {[%clk 0:02:15]} 19. Qe5 {[%clk 0:02:05.5]} 19...
Qxe5 {[%clk 0:02:01.6]} 20. Nxe5 {[%clk 0:02:07.4]} 20... Bf5 {[%clk 0:02:03.2]}
21. Nxc6 {[%clk 0:02:00.2]} 21... Rc8 {[%clk 0:02:03.8]} 22. Nxd5 {[%clk
0:01:57.8]} 22... Rxc6 {[%clk 0:02:02.4]} 23. Nxf4 {[%clk 0:01:46.1]} 23... Bxf4
{[%clk 0:02:04.3]} 24. Rxa7 {[%clk 0:01:45.5]} 24... Be6 {[%clk 0:01:25]} 25.
Re1 {[%clk 0:01:44.3]} 25... Bf7 {[%clk 0:01:17.6]} 26. a4 {[%clk 0:01:31.8]}
26... Kf8 {[%clk 0:01:09.2]} 27. b4 {[%clk 0:01:29.5]} 27... Bd2 {[%clk
0:01:01.4]} 28. b5 {[%clk 0:01:28.8]} 28... Rc2 {[%clk 0:00:53.9]} 29. Rb1
{[%clk 0:01:20.7]} 29... Ba2 {[%clk 0:00:43.3]} 30. Rd1 {[%clk 0:01:21.7]} 30...
Rb2 {[%clk 0:00:43.1]} 31. b6 {[%clk 0:01:20.5]} 31... Bd5 {[%clk 0:00:41.2]}
32. a5 {[%clk 0:01:20.1]} 32... h5 {[%clk 0:00:34]} 33. a6 {[%clk 0:00:59.2]}
33... Bf4 {[%clk 0:00:23.1]} 34. b7 {[%clk 0:01:00.3]} 34... h4 {[%clk
0:00:23.8]} 35. Ra8+ {[%clk 0:00:58.4]} 35... Kf7 {[%clk 0:00:21.5]} 36. Rd8
{[%clk 0:00:55.5]} 36... Be4 {[%clk 0:00:14.3]} 37. d5 {[%clk 0:00:52.8]} 37...
Bg3 {[%clk 0:00:08.6]} 38. fxg3 {[%clk 0:00:46.5]} 38... Rxg2+ {[%clk
0:00:08.8]} 39. Kf1 {[%clk 0:00:48]} 39... h3 {[%clk 0:00:09.6]} 40. b8=Q {[%clk
0:00:46.4]} 40... h2 {[%clk 0:00:10.9]} 41. Rd7+ {[%clk 0:00:43.9]} 41... Kf6
{[%clk 0:00:11.9]} 42. Qf4+ {[%clk 0:00:42.8]} 42... Bf5 {[%clk 0:00:12.6]} 43.
Qd4+ {[%clk 0:00:43.7]} 43... Kg5 {[%clk 0:00:12.8]} 44. Qh4# {[%clk 0:00:45.5]}
1-0

[Event "*** Titled Tuesday Blitz"]
[Site "Chess.com"]
[Date "2018.06.05"]
[Round "4"]
[White "Patzel09"]
[Black "hansen"]
[Result "1-0"]
[WhiteElo "2600"]
[BlackElo "2764"]
[TimeControl "180+2"]
[EndTime "13:58:12 PDT"]
[Termination "Patzel09 won by resignation"]

1. e4 {[%clk 0:03:01.9]} 1... c5 {[%clk 0:02:58.1]} 2. c3 {[%clk 0:03:02.2]}
2... Nf6 {[%clk 0:02:58.3]} 3. e5 {[%clk 0:03:03.1]} 3... Nd5 {[%clk 0:02:59.2]}
4. Bc4 {[%clk 0:03:05]} 4... Nb6 {[%clk 0:02:59.8]} 5. Bb3 {[%clk 0:03:05.7]}
5... c4 {[%clk 0:03:00.2]} 6. Bc2 {[%clk 0:03:06.4]} 6... Nc6 {[%clk 0:03:02.1]}
7. Nf3 {[%clk 0:03:06.9]} 7... d5 {[%clk 0:02:57.4]} 8. exd6 {[%clk 0:03:07.3]}
8... Qxd6 {[%clk 0:02:52.4]} 9. O-O {[%clk 0:03:07.5]} 9... Bg4 {[%clk 0:02:54]}
10. Re1 {[%clk 0:03:07.6]} 10... e6 {[%clk 0:02:54.3]} 11. b3 {[%clk 0:03:07.1]}
11... cxb3 {[%clk 0:02:52.4]} 12. axb3 {[%clk 0:03:07.8]} 12... Be7 {[%clk
0:02:53.1]} 13. Na3 {[%clk 0:03:03.4]} 13... O-O {[%clk 0:02:53.9]} 14. Nc4
{[%clk 0:02:58]} 14... Qc7 {[%clk 0:02:52.8]} 15. d4 {[%clk 0:02:49.2]} 15...
Nd5 {[%clk 0:02:51.9]} 16. Bd2 {[%clk 0:02:50.2]} 16... b5 {[%clk 0:02:46.8]}
17. Ne3 {[%clk 0:02:49.2]} 17... Nxe3 {[%clk 0:02:48.2]} 18. Bxe3 {[%clk
0:02:39.5]} 18... Rfd8 {[%clk 0:02:44.2]} 19. Be4 {[%clk 0:02:35.1]} 19... a6
{[%clk 0:01:47]} 20. Bxc6 {[%clk 0:02:14.2]} 20... Qxc6 {[%clk 0:01:44.2]} 21.
Ne5 {[%clk 0:02:15.4]} 21... Bxd1 {[%clk 0:01:45.7]} 22. Nxc6 {[%clk 0:02:16.2]}
22... Bxb3 {[%clk 0:01:47]} 23. Nxe7+ {[%clk 0:02:16.3]} 23... Kf8 {[%clk
0:01:48.6]} 24. Nc6 {[%clk 0:02:08.8]} 24... Rdc8 {[%clk 0:01:49.7]} 25. Ne5
{[%clk 0:02:04.4]} 25... Rxc3 {[%clk 0:01:39.7]} 26. Nd7+ {[%clk 0:02:04.6]}
26... Ke7 {[%clk 0:01:37.6]} 27. Nc5 {[%clk 0:02:01.7]} 27... Bd5 {[%clk
0:01:00.3]} 28. Nxa6 {[%clk 0:02:01.6]} 28... Rc4 {[%clk 0:00:48]} 29. h3 {[%clk
0:01:57.5]} 29... f6 {[%clk 0:00:45.2]} 30. Reb1 {[%clk 0:01:51.4]} 30... Bc6
{[%clk 0:00:42.4]} 31. Nc5 {[%clk 0:01:33.3]} 31... Rxa1 {[%clk 0:00:37.1]} 32.
Rxa1 {[%clk 0:01:35.2]} 32... b4 {[%clk 0:00:38.4]} 33. Ra6 {[%clk 0:01:27]}
33... Bd5 {[%clk 0:00:37.4]} 34. Ra7+ {[%clk 0:01:23.4]} 34... Kd6 {[%clk
0:00:38.6]} 35. Rd7+ {[%clk 0:01:17.3]} 35... Kc6 {[%clk 0:00:39.3]} 36. Rxg7
{[%clk 0:01:19.2]} 36... Rc3 {[%clk 0:00:32.3]} 37. Rxh7 {[%clk 0:01:15.6]}
37... b3 {[%clk 0:00:33.6]} 38. Nxb3 {[%clk 0:01:14.1]} 38... Rxb3 {[%clk
0:00:34.4]} 39. Rf7 {[%clk 0:01:13.1]} 39... f5 {[%clk 0:00:33.8]} 40. h4 {[%clk
0:01:14.1]} 40... Rb8 {[%clk 0:00:20.1]} 41. h5 {[%clk 0:01:13]} 41... Rg8
{[%clk 0:00:20.2]} 42. h6 {[%clk 0:00:54.6]} 42... Rxg2+ {[%clk 0:00:21]} 43.
Kf1 {[%clk 0:00:55.5]} 43... Rh2 {[%clk 0:00:22.3]} 44. Bf4 {[%clk 0:00:50.5]}
44... Rh4 {[%clk 0:00:21.5]} 45. h7 {[%clk 0:00:47.8]} 45... Bf3 {[%clk
0:00:20.6]} 46. Ke1 {[%clk 0:00:46]} 46... Kd5 {[%clk 0:00:17.7]} 47. Be5 {[%clk
0:00:47]} 47... Rh1+ {[%clk 0:00:14]} 48. Kd2 {[%clk 0:00:47.6]} 48... Rd1+
{[%clk 0:00:14.1]} 49. Kc2 {[%clk 0:00:44.7]} 1-0

[Event "*** Titled Tuesday Blitz"]
[Site "Chess.com"]
[Date "2018.06.05"]
[Round "4"]
[White "WPWPWP-2015"]
[Black "KRASAVCHIK2002"]
[Result "1/2-1/2"]
[WhiteElo "2355"]
[BlackElo "2229"]
[TimeControl "180+2"]
[EndTime "13:58:15 PDT"]
[Termination "Game drawn by repetition"]

1. e4 {[%clk 0:03:01.9]} 1... c5 {[%clk 0:02:59.9]} 2. Nf3 {[%clk 0:02:55]} 2...
d6 {[%clk 0:03:00.7]} 3. Bb5+ {[%clk 0:02:53.6]} 3... Nd7 {[%clk 0:03:00]} 4.
O-O {[%clk 0:02:52.9]} 4... Nf6 {[%clk 0:03:00.7]} 5. Re1 {[%clk 0:02:52.5]}
5... e5 {[%clk 0:03:01.7]} 6. c4 {[%clk 0:02:50.7]} 6... Be7 {[%clk 0:03:02.4]}
7. Nc3 {[%clk 0:02:51]} 7... O-O {[%clk 0:03:03.4]} 8. d3 {[%clk 0:02:50.9]}
8... a6 {[%clk 0:03:04.5]} 9. Ba4 {[%clk 0:02:51.2]} 9... Nb6 {[%clk 0:03:02.3]}
10. Bc2 {[%clk 0:02:50.4]} 10... Bg4 {[%clk 0:03:02]} 11. h3 {[%clk 0:02:50.9]}
11... Bh5 {[%clk 0:03:03]} 12. g4 {[%clk 0:02:50.2]} 12... Bg6 {[%clk
0:03:03.9]} 13. Ne2 {[%clk 0:02:49.2]} 13... h5 {[%clk 0:02:35.8]} 14. Nh2
{[%clk 0:02:44.5]} 14... hxg4 {[%clk 0:02:30.4]} 15. hxg4 {[%clk 0:02:44.8]}
15... Nh7 {[%clk 0:02:29.9]} 16. Ng3 {[%clk 0:02:42.1]} 16... Bg5 {[%clk
0:02:29.9]} 17. Nf3 {[%clk 0:02:39.7]} 17... Bxc1 {[%clk 0:02:18.8]} 18. Qxc1
{[%clk 0:02:39.7]} 18... Nd7 {[%clk 0:02:03.6]} 19. Bd1 {[%clk 0:02:36.1]} 19...
Ndf6 {[%clk 0:01:58.3]} 20. Nh2 {[%clk 0:02:06.7]} 20... Ne8 {[%clk 0:01:50.7]}
21. Qe3 {[%clk 0:02:04.6]} 21... Nc7 {[%clk 0:01:43.3]} 22. Nf3 {[%clk
0:01:56.4]} 22... Ne6 {[%clk 0:01:43.3]} 23. Kh2 {[%clk 0:01:47.7]} 23... Nf4
{[%clk 0:01:15.5]} 24. Rh1 {[%clk 0:01:21.3]} 24... Nf6 {[%clk 0:00:58.5]} 25.
Ng1 {[%clk 0:01:07.1]} 25... Nh7 {[%clk 0:00:46.8]} 26. Nf3 {[%clk 0:01:04.5]}
26... Nf6 {[%clk 0:00:46.5]} 27. Ng1 {[%clk 0:00:52.8]} 27... Nh7 {[%clk
0:00:47]} 28. N1e2 {[%clk 0:00:19.9]} 28... Qf6 {[%clk 0:00:27.5]} 29. Kg1
{[%clk 0:00:17.1]} 29... Ng5 {[%clk 0:00:24.1]} 30. Nf5 {[%clk 0:00:17.3]} 30...
Bxf5 {[%clk 0:00:23.5]} 31. gxf5 {[%clk 0:00:16.1]} 31... g6 {[%clk 0:00:17.2]}
32. Nxf4 {[%clk 0:00:16.4]} 32... exf4 {[%clk 0:00:18.3]} 33. Qxf4 {[%clk
0:00:16.9]} 33... Qxb2 {[%clk 0:00:17.2]} 34. Qxg5 {[%clk 0:00:14.7]} 34... Qxa1
{[%clk 0:00:18.1]} 35. Qh6 {[%clk 0:00:14.1]} 35... Qxd1+ {[%clk 0:00:16]} 36.
Kg2 {[%clk 0:00:15.2]} 36... Qg4+ {[%clk 0:00:16.7]} 37. Kf1 {[%clk 0:00:16.2]}
37... Qd1+ {[%clk 0:00:16.7]} 38. Kg2 {[%clk 0:00:17.3]} 38... Qg4+ {[%clk
0:00:17.2]} 39. Kf1 {[%clk 0:00:18.3]} 39... Qd1+ {[%clk 0:00:16.8]} 40. Kg2
{[%clk 0:00:19.2]} 40... Qg4+ {[%clk 0:00:17.3]} 41. Kf1 {[%clk 0:00:14.9]}
41... Qd1+ {[%clk 0:00:17.7]} 42. Kg2 {[%clk 0:00:15.7]} 42... Qg4+ {[%clk
0:00:18.6]} 43. Kf1 {[%clk 0:00:16.5]} 43... Qd1+ {[%clk 0:00:19.3]} 44. Kg2
{[%clk 0:00:17.4]} 1/2-1/2

[Event "*** Titled Tuesday Blitz"]
[Site "Chess.com"]
[Date "2018.06.05"]
[Round "4"]
[White "gkchesstiger"]
[Black "igorkovalenko"]
[Result "1/2-1/2"]
[WhiteElo "2804"]
[BlackElo "2845"]
[TimeControl "180+2"]
[EndTime "13:58:18 PDT"]
[Termination "Game drawn by agreement"]

1. d4 {[%clk 0:03:01.9]} 1... d6 {[%clk 0:02:55.3]} 2. Nf3 {[%clk 0:03:00.7]}
2... Nf6 {[%clk 0:02:55.2]} 3. Bf4 {[%clk 0:02:59.7]} 3... Bg4 {[%clk
0:02:56.2]} 4. Nbd2 {[%clk 0:02:59.6]} 4... Nbd7 {[%clk 0:02:55.3]} 5. h3 {[%clk
0:03:00.5]} 5... Bh5 {[%clk 0:02:53.6]} 6. c3 {[%clk 0:03:01.7]} 6... e6 {[%clk
0:02:54.6]} 7. Qb3 {[%clk 0:03:00.8]} 7... Rb8 {[%clk 0:02:54.6]} 8. e3 {[%clk
0:03:00.8]} 8... Be7 {[%clk 0:02:54.8]} 9. Bd3 {[%clk 0:02:43.3]} 9... O-O
{[%clk 0:02:54.6]} 10. Bh2 {[%clk 0:02:42.8]} 10... d5 {[%clk 0:02:49.9]} 11.
O-O {[%clk 0:02:40.9]} 11... Bg6 {[%clk 0:02:48.1]} 12. Bxg6 {[%clk 0:02:40.1]}
12... hxg6 {[%clk 0:02:50]} 13. c4 {[%clk 0:02:39.9]} 13... Bd6 {[%clk
0:02:33.7]} 14. Bxd6 {[%clk 0:02:40.2]} 14... cxd6 {[%clk 0:02:34.9]} 15. cxd5
{[%clk 0:02:38.5]} 15... Nxd5 {[%clk 0:02:35.8]} 16. Qa3 {[%clk 0:02:39.7]}
16... N7b6 {[%clk 0:02:34.9]} 17. Rfc1 {[%clk 0:02:39.7]} 17... a6 {[%clk
0:02:34.7]} 18. Ne4 {[%clk 0:02:39.5]} 18... Nc8 {[%clk 0:02:35.5]} 19. Rc2
{[%clk 0:02:36.1]} 19... Qd7 {[%clk 0:02:32.3]} 20. Rac1 {[%clk 0:02:36.3]}
20... Rd8 {[%clk 0:02:33.2]} 21. h4 {[%clk 0:02:24]} 21... Nce7 {[%clk
0:02:33.8]} 22. Nfd2 {[%clk 0:02:13.7]} 22... Nf5 {[%clk 0:02:24.6]} 23. g3
{[%clk 0:02:14]} 23... Rdc8 {[%clk 0:02:19.9]} 24. g4 {[%clk 0:01:31.5]} 24...
Nxh4 {[%clk 0:02:14.6]} 25. Qxd6 {[%clk 0:01:31.5]} 25... Qxd6 {[%clk
0:01:42.3]} 26. Rxc8+ {[%clk 0:01:30.7]} 26... Qf8 {[%clk 0:01:41.8]} 27. Rxf8+
{[%clk 0:01:30.8]} 27... Kxf8 {[%clk 0:01:43.7]} 28. Kh2 {[%clk 0:01:30.1]}
28... f6 {[%clk 0:01:40.8]} 29. g5 {[%clk 0:01:27.2]} 29... Ke7 {[%clk
0:01:30.6]} 30. a3 {[%clk 0:01:22.7]} 30... b6 {[%clk 0:01:29.5]} 31. Nc3 {[%clk
0:01:20.7]} 31... Kd7 {[%clk 0:01:18.2]} 32. e4 {[%clk 0:01:18.8]} 32... Nf4
{[%clk 0:01:10.5]} 33. Kg3 {[%clk 0:01:17.5]} 33... fxg5 {[%clk 0:01:11.5]} 34.
Nc4 {[%clk 0:01:12.1]} 34... Nd3 {[%clk 0:01:02.3]} 35. Rd1 {[%clk 0:01:08.8]}
35... b5 {[%clk 0:01:03.3]} 36. Ne5+ {[%clk 0:01:06.5]} 36... Nxe5 {[%clk
0:01:04.2]} 37. dxe5+ {[%clk 0:01:07.5]} 37... Ke7 {[%clk 0:01:05.7]} 38. f3
{[%clk 0:01:01.7]} 38... Rf8 {[%clk 0:01:05.7]} 39. Rd3 {[%clk 0:01:02.3]} 39...
Rc8 {[%clk 0:00:57.9]} 40. Kg4 {[%clk 0:01:00.6]} 40... Ng2 {[%clk 0:00:51.4]}
41. Kxg5 {[%clk 0:00:57.6]} 41... Ne1 {[%clk 0:00:52.4]} 42. Re3 {[%clk
0:00:57.6]} 42... Nc2 {[%clk 0:00:53.5]} 43. Re2 {[%clk 0:00:53.6]} 43... Nxa3
{[%clk 0:00:48.6]} 44. Kxg6 {[%clk 0:00:44.3]} 44... Nc4 {[%clk 0:00:49.4]} 45.
f4 {[%clk 0:00:45.1]} 45... Rf8 {[%clk 0:00:47.9]} 46. Kg5 {[%clk 0:00:43.7]}
46... Rh8 {[%clk 0:00:42.5]} 47. b3 {[%clk 0:00:42.7]} 47... Rh3 {[%clk
0:00:33.5]} 48. bxc4 {[%clk 0:00:43.2]} 48... Rxc3 {[%clk 0:00:34.6]} 49. cxb5
{[%clk 0:00:44.2]} 49... axb5 {[%clk 0:00:36.5]} 50. Rb2 {[%clk 0:00:44.8]}
50... Rg3+ {[%clk 0:00:37]} 51. Kh4 {[%clk 0:00:45.6]} 51... Re3 {[%clk
0:00:37.2]} 52. Rxb5 {[%clk 0:00:46]} 52... Rxe4 {[%clk 0:00:38.4]} 53. Rb7+
{[%clk 0:00:45.2]} 53... Kf8 {[%clk 0:00:39.3]} 54. Kg5 {[%clk 0:00:46.1]} 54...
Re1 {[%clk 0:00:40]} 1/2-1/2

[Event "*** Titled Tuesday Blitz"]
[Site "Chess.com"]
[Date "2018.06.05"]
[Round "4"]
[White "murmah2003"]
[Black "bascheyaro"]
[Result "1-0"]
[WhiteElo "2486"]
[BlackElo "2663"]
[TimeControl "180+2"]
[EndTime "13:58:19 PDT"]
[Termination "murmah2003 won by checkmate"]

1. Nf3 {[%clk 0:03:00.8]} 1... d5 {[%clk 0:03:00.9]} 2. c4 {[%clk 0:03:01.3]}
2... c6 {[%clk 0:03:01.6]} 3. d4 {[%clk 0:03:01.1]} 3... Nf6 {[%clk 0:03:02.3]}
4. Nc3 {[%clk 0:02:58.3]} 4... g6 {[%clk 0:03:03.2]} 5. cxd5 {[%clk 0:02:56.3]}
5... cxd5 {[%clk 0:03:04.1]} 6. Bf4 {[%clk 0:02:57.8]} 6... Bg7 {[%clk
0:03:04.5]} 7. e3 {[%clk 0:02:57.1]} 7... O-O {[%clk 0:03:05.3]} 8. h3 {[%clk
0:02:52.6]} 8... Nc6 {[%clk 0:03:06]} 9. Bd3 {[%clk 0:02:44.5]} 9... a6 {[%clk
0:03:06.9]} 10. O-O {[%clk 0:02:43]} 10... Bf5 {[%clk 0:03:07.7]} 11. Bxf5
{[%clk 0:02:30.7]} 11... gxf5 {[%clk 0:03:08.6]} 12. Rc1 {[%clk 0:02:32.6]}
12... e6 {[%clk 0:03:06.7]} 13. Na4 {[%clk 0:02:26.6]} 13... Ne4 {[%clk
0:03:05.6]} 14. Qb3 {[%clk 0:02:24.8]} 14... Qe7 {[%clk 0:02:46.7]} 15. Nb6
{[%clk 0:02:22.9]} 15... Rad8 {[%clk 0:02:44.3]} 16. a3 {[%clk 0:02:18.2]} 16...
Kh8 {[%clk 0:02:42.1]} 17. Na4 {[%clk 0:01:51.5]} 17... Na5 {[%clk 0:02:37.4]}
18. Qd3 {[%clk 0:01:28.8]} 18... Nc4 {[%clk 0:02:37.4]} 19. b3 {[%clk 0:01:00]}
19... Ncd6 {[%clk 0:01:47.9]} 20. Nc5 {[%clk 0:00:56.7]} 20... Rc8 {[%clk
0:01:48.8]} 21. Rc2 {[%clk 0:00:50.8]} 21... Nxc5 {[%clk 0:01:49.4]} 22. dxc5
{[%clk 0:00:52.7]} 22... Ne4 {[%clk 0:01:50.3]} 23. b4 {[%clk 0:00:50.2]} 23...
Rg8 {[%clk 0:01:51]} 24. Rfc1 {[%clk 0:00:48.5]} 24... a5 {[%clk 0:01:39.6]} 25.
Nd2 {[%clk 0:00:42.9]} 25... axb4 {[%clk 0:01:40.1]} 26. axb4 {[%clk 0:00:44.8]}
26... Bf6 {[%clk 0:01:39.9]} 27. f3 {[%clk 0:00:36.5]} 27... Ng5 {[%clk
0:01:25.5]} 28. Kh1 {[%clk 0:00:33.5]} 28... e5 {[%clk 0:01:23.2]} 29. Bh2
{[%clk 0:00:30.7]} 29... e4 {[%clk 0:01:24]} 30. Qxd5 {[%clk 0:00:31.5]} 30...
exf3 {[%clk 0:01:23.2]} 31. Nxf3 {[%clk 0:00:30.3]} 31... Qxe3 {[%clk
0:01:20.2]} 32. Qxf5 {[%clk 0:00:23.3]} 32... Rc6 {[%clk 0:01:21.4]} 33. b5
{[%clk 0:00:15.1]} 33... Re6 {[%clk 0:01:21.5]} 34. Bf4 {[%clk 0:00:09.7]} 34...
Ne4 {[%clk 0:00:58.4]} 35. Bxe3 {[%clk 0:00:06.5]} 35... Ng3+ {[%clk 0:00:59.6]}
36. Kh2 {[%clk 0:00:07.9]} 36... Nxf5 {[%clk 0:01:01.5]} 37. Bf4 {[%clk
0:00:09.3]} 37... Rc8 {[%clk 0:01:01.9]} 38. c6 {[%clk 0:00:09.2]} 38... bxc6
{[%clk 0:01:03]} 39. bxc6 {[%clk 0:00:11.1]} 39... Re4 {[%clk 0:01:01.6]} 40.
Bg3 {[%clk 0:00:07.8]} 40... Be7 {[%clk 0:01:00.5]} 41. Be5+ {[%clk 0:00:05.8]}
41... f6 {[%clk 0:01:01.1]} 42. Bb2 {[%clk 0:00:03.4]} 42... Bd6+ {[%clk
0:01:02]} 43. Kg1 {[%clk 0:00:05]} 43... Kg7 {[%clk 0:01:01.8]} 44. Rd1 {[%clk
0:00:05]} 44... Ne3 {[%clk 0:01:00.4]} 45. Rxd6 {[%clk 0:00:05.8]} 45... Nxc2
{[%clk 0:01:01.7]} 46. Bxf6+ {[%clk 0:00:07.5]} 46... Kf8 {[%clk 0:00:57.3]} 47.
Ng5 {[%clk 0:00:08.2]} 47... Rc4 {[%clk 0:00:57.3]} 48. Rd7 {[%clk 0:00:08.9]}
48... R8xc6 {[%clk 0:00:52.8]} 49. Rd8# {[%clk 0:00:09.3]} 1-0